{"text_format":"3","workbook":"xlsx","n_sheets":1,"sheets":["list"],"not_rendered":{"defined_names":9},"read":"whole","date_system":"1900"}

{"sheet":"list","index":0,"n_rows":138,"n_cols":12,"rows_kept":138,"merged":[[0,0,0,11]]}
["Протокол по итогам проведения всероссийской олимпиады по литературе в 2023/2024 уч.году в Бугульминском МР"]
["№","Название ОУ","Фамилия","Класс","Класс участия","Первичный балл","Добавлено по итогам апелляций","Итоговый балл","Макс. Балл","Статус","Призер МЭ прошлого года","Учитель"]
[1,3,5,11,12,13,14,15,16,17,18,19]
[1,"Муниципальное бюджетное общеобразовательное учреждение средняя общеобразовательная школа №6 с углубленным изучением отдельных предметов Бугульминского муниципального района  Республики Татарстан ","Нигматуллина",7,7,41.5,0,{"$f":"F4+G4","v":41.5},100,"участник",null,"Школьняк Юлия Николаевна"]
[2,"Муниципальное бюджетное общеобразовательное учреждение  «Карабашская средняя общеобразовательная школа №2» Бугульминского муниципального района  Республики Татарстан ","Мухаметзянова",7,7,37,0,{"$f":"F5+G5","v":37},100,"участник",null,"Камалова Светлана Юрьевна"]
[3,"Муниципальное бюджетное общеобразовательное учреждение средняя общеобразовательная школа №11 Бугульминского муниципального района Республики Татарстан","Баязитова",7,7,34,0,{"$f":"F6+G6","v":34},100,"участник",null,"Ахмедшина Гульнара Ильдаровна"]
[4,"Муниципальное бюджетное общеобразовательное учреждение лицей №2 Бугульминского муниципального района РТ Школа - центр компетенции в электронном образовании","Шаймарданова",7,7,33,0,33,100,"участник",null,"Карсакова Эльна Борисовна"]
[5,"Муниципальное бюджетное общеобразовательное учреждение cредняя общеобразовательная школа №4 Бугульминского муниципального района Республики Татарстан","Гумарова",7,7,32,0,32,100,"участник",null,"Кутлузаманова Нурия Фаритовна"]
[6,"Муниципальное бюджетное общеобразовательное учреждение cредняя общеобразовательная школа №1 с углубленным изучением отдельных предметов Бугульминского муниципального района Республики Татарстан","Анисимова",7,7,30.5,0,30.5,100,"участник",null,"Севастьянова Алина Эдуардовна"]
[7,"Муниципальное бюджетное общеобразовательное учреждение лицей №2 Бугульминского муниципального района РТ Школа - центр компетенции в электронном образовании","Михеева",7,7,28,0,28,100,"участник",null,"Щербинина Светлана Александровна"]
[8,"Муниципальное бюджетное общеобразовательное учреждение лицей №2 Бугульминского муниципального района РТ Школа - центр компетенции в электронном образовании","Бородина",7,7,26.5,0,26.5,100,"участник",null,"Галлямова Наталья Владимировна"]
[9,"Муниципальное бюджетное общеобразовательное учреждение средняя общеобразовательная школа №6 с углубленным изучением отдельных предметов Бугульминского муниципального района  Республики Татарстан ","Ермакова",7,7,24,0,24,100,"участник",null,"Школьняк Юлия Николаевна"]
[10,"Муниципальное бюджетное общеобразовательное учреждение основная общеобразовательная школа №18 Бугульминского муниципального района РеспубликиТатарстан","Алексеева",7,7,23,0,23,100,"участник",null,"Чернова А.Н."]
[11,"Муниципальное бюджетное общеобразовательное учреждение средняя общеобразовательная школа №6 с углубленным изучением отдельных предметов Бугульминского муниципального района  Республики Татарстан ","Мальцева",7,7,22,0,22,100,"участник",null,"Школьняк Юлия Николаевна"]
[12,"муниципальное бюджетное общеобразовательное учреждение cредняя общеобразовательная школа №3 с углубленным изучением отдельных предметов Бугульминского муниципального района Республики Татарстан","Шафигуллина",7,7,21,0,21,100,"участник",null,"Кабанова Ольга Захаровна"]
[13,"Муниципальное бюджетное общеобразовательное учреждение основная общеобразовательная школа №12 Бугульминского муниципального района Республики Татарстан","Теребенина",7,7,20,0,20,100,"участник",null,"Шаталова Эвелина Николаевна"]
[14,"Муниципальное бюджетное общеобразовательное учреждение Малобугульминская средняя общеобразовательная школа Бугульминского муниципального района Республики Татарстан","Богданова",7,7,19,0,19,100,"участник",null,"Гарипова Людмила Григорьевна"]
[15,"муниципальное бюджетное общеобразовательное учреждение cредняя общеобразовательная школа №3 с углубленным изучением отдельных предметов Бугульминского муниципального района Республики Татарстан","Морева",7,7,19,0,19,100,"участник",null,"Майорова Кристина Ильдаровна"]
[16,"Муниципальное бюджетное общеобразовательное учреждение гимназия №7 Бугульминского муниципального района  Республики Татарстан ","Конакова",7,7,17.5,0,17.5,100,"участник",null,"Камбулова Марина Александровна"]
[17,"Муниципальное бюджетное общеобразовательное учреждение гимназия №7 Бугульминского муниципального района  Республики Татарстан ","Болотов",7,7,15.5,0,15.5,100,"участник",null,"Барнатович Ольга Александровна"]
[18,"Муниципальное бюджетное общеобразовательное учреждение гимназия №7 Бугульминского муниципального района  Республики Татарстан ","Садыкова",7,7,13.5,0,13.5,100,"участник",null,"Камбулова Марина Александровна"]
[19,"Муниципальное бюджетное общеобразовательное учреждение средняя общеобразовательная школа №9 Бугульминского муниципального района Республики Татарстан имени Капитолины Андреевны Сидоркиной","Яркова",7,7,12,0,12,100,"участник",null,"Назарова Ирина Валентиновна"]
[20,"Муниципальное бюджетное общеобразовательное учреждение лицей №2 Бугульминского муниципального района РТ Школа - центр компетенции в электронном образовании","Андреев",7,7,9,0,9,100,"участник",null,"Галлямова Наталья Владимировна"]
[21,"Муниципальное бюджетное общеобразовательное учреждение основная общеобразовательная школа №8 Бугульминского муниципального района Республики Татарстан ","Абдрахманова",7,7,8,0,8,100,"участник",null,"Плечева Татьяна Викторовна"]
[22,"Муниципальное бюджетное общеобразовательное учреждение средняя общеобразовательная школа № 16 Бугульминского муниципального района Республики Татарстан","Насыбуллина",7,7,8,0,8,100,"участник",null,"Мельникова Наталья Ивановна"]
[23,"Муниципальное бюджетное общеобразовательное учреждение основная общеобразовательная школа №8 Бугульминского муниципального района Республики Татарстан ","Сабитова",7,7,8,0,8,100,"участник",null,"Плечева Татьяна Викторовна"]
[24,"Муниципальное бюджетное общеобразовательное учреждение гимназия №7 Бугульминского муниципального района  Республики Татарстан ","Зарипова",7,7,7,0,7,100,"участник",null,"Арбузова Светлана Сергеевна"]
[25,"Муниципальное бюджетное общеобразовательное учреждение средняя общеобразовательная школа № 5 с углубленным изучением отдельных предметов Бугульминского муниципального района Республики Татарстан","Фаткуллин",7,7,6,0,6,100,"участник",null,"Кашапова Феруза Риядовна"]
[26,"Государственное общеобразовательное учреждение \"Бугульминская кадетская школа-интернат имени Героя Советского Союза Газинура Гафиатуллина\"","Курликов",7,7,5.5,0,5.5,100,"участник",null,"Шакурова Елена Владимировна"]
[27,"Муниципальное бюджетное общеобразовательное учреждение средняя общеобразовательная школа № 5 с углубленным изучением отдельных предметов Бугульминского муниципального района Республики Татарстан","Хафизова",7,7,5,0,5,100,"участник",null,"Хамзина Наталья Леонидовна"]
[28,"Муниципальное бюджетное общеобразовательное учреждение основная общеобразовательная школа №12 Бугульминского муниципального района Республики Татарстан","Кулакова",7,7,4,0,4,100,"участник",null,"Шаталова Эвелина Николаевна"]
[29,"Муниципальное бюджетное общеобразовательное учреждение Восточная основная общеобразовательная школа Бугульминского муниципального района РТ","Салимзянова",7,7,2.5,0,2.5,100,"участник",null,"Ильясова Флера Ахтямовна"]
[30,"Государственное общеобразовательное учреждение \"Бугульминская кадетская школа-интернат имени Героя Советского Союза Газинура Гафиатуллина\"","Копылов",7,7,2.5,0,2.5,100,"участник",null,"Шакурова Елена Владимировна"]
[31,"Муниципальное бюджетное общеобразовательное учреждение Подгорненская  основная общеобразовательная школа   Бугульминского муниципального района Республики Татарстан","Кузнецов",7,7,1,0,1,100,"участник",null,"Исаева Галина Султановна"]
[32,"Муниципальное бюджетное общеобразовательное учреждение средняя общеобразовательная школа № 16 Бугульминского муниципального района Республики Татарстан","Фомина",7,7,1,0,1,100,"участник",null,"Мельникова Наталья Ивановна"]
[33,"Муниципальное бюджетное общеобразовательное учреждение средняя общеобразовательная школа №11 Бугульминского муниципального района Республики Татарстан","Сидорова",7,7,0,0,0,100,"участник",null,"Ахмедшина Гульнара Ильдаровна"]
[34,"Муниципальное бюджетное общеобразовательное учреждение лицей №2 Бугульминского муниципального района РТ Школа - центр компетенции в электронном образовании","Лазарева",8,8,86,0,86,100,"победитель","да","Щербинина Светлана Александровна"]
[35,"Муниципальное бюджетное общеобразовательное учреждение средняя общеобразовательная школа №6 с углубленным изучением отдельных предметов Бугульминского муниципального района РТ","Дьяченко",8,8,76,0,76,100,"призер",null,"Носачева Светлана Викторовна"]
[36,"Муниципальное бюджетное общеобразовательное учреждение лицей №2 Бугульминского муниципального района РТ Школа - центр компетенции в электронном образовании","Имаева",8,8,68,0,68,100,"призер",null,"Щербинина Светлана Александровна"]
[37,"Муниципальное бюджетное общеобразовательное учреждение лицей №2 Бугульминского муниципального района РТ Школа - центр компетенции в электронном образовании","Исабаева",8,8,66,0,66,100,"призер","да","Казакова С.М."]
[38,"Муниципальное бюджетное общеобразовательное учреждение средняя общеобразовательная школа № 16 Бугульминского муниципального района Республики Татарстан","Лобачева",8,8,50,0,50,100,"участник",null,"Бахтина Нина Николаевна"]
[39,"Муниципальное бюджетное общеобразовательное учреждение cредняя общеобразовательная школа №1 с углубленным изучением отдельных предметов Бугульминского муниципального района Республики Татарстан","Джанбулатов",8,8,46,0,46,100,"участник",null,"Быстрова Наталья Николаевна"]
[40,"Муниципальное бюджетное общеобразовательное учреждение гимназия №7 Бугульминского муниципального района РТ","Шафигуллина",8,8,44,0,44,100,"участник","да","Некрасова Ксения Андреевна"]
[41,"Муниципальное бюджетное общеобразовательное учреждение средняя общеобразовательная школа №9 Бугульминского муниципального района Республики Татарстан имени Капитолины Андреевны Сидоркиной","Багатеева",8,8,42,0,42,100,"участник",null,"Никулина Светлана Юрьева"]
[42,"Муниципальное бюджетное общеобразовательное учреждение средняя общеобразовательная школа №6 с углубленным изучением отдельных предметов Бугульминского муниципального района РТ","Попова",8,8,40,0,40,100,"участник",null,"Носачева Светлана Викторовна"]
[43,"Муниципальное бюджетное общеобразовательное учреждение лицей №2 Бугульминского муниципального района РТ Школа - центр компетенции в электронном образовании","Ахметшина",8,8,39,0,39,100,"участник","да","Щербинина Светлана Александровна"]
[44,"Муниципальное бюджетное общеобразовательное учреждение средняя общеобразовательная школа № 5 с углубленным изучением отдельных предметов Бугульминского муниципального района Республики Татарстан","Ларина",8,8,37.5,0,37.5,100,"участник",null,"Кашапова Феруза Риядовна "]
[45,"Муниципальное бюджетное общеобразовательное учреждение средняя общеобразовательная школа № 16 Бугульминского муниципального района Республики Татарстан","Кулагина",8,8,37,0,37,100,"участник",null,"Бахтина Нина Николаевна"]
[46,"Муниципальное бюджетное общеобразовательное учреждение средняя общеобразовательная школа №11 Бугульминского муниципального района Республики Татарстан","Сабитов",8,8,33,0,33,100,"участник",null,"Ахмедшина Гульнара Ильдаровна"]
[47,"Муниципальное бюджетное общеобразовательное учреждение гимназия №7 Бугульминского муниципального района РТ","Красильникова",8,8,30,0,30,100,"участник",null,"Барнатович Ольга Александровна"]
[48,"Государственное бюджетное общеобразовательное учреждение \"Бугульминская кадетская школа-интернат имени Героя Советского Союза Газинура Гафиатуллина\"","Саттарова",8,8,29,0,29,100,"участник",null,"Ахметшина Нурия Нурисламовна"]
[49,"Муниципальное бюджетное общеобразовательное учреждение средняя общеобразовательная школа № 5 с углубленным изучением отдельных предметов Бугульминского муниципального района Республики Татарстан","Гараев",8,8,28,0,28,100,"участник",null,"Байбекова Гульнур Азгаровна"]
[50,"Муниципальное бюджетное общеобразовательное учреждение cредняя общеобразовательная школа №1 с углубленным изучением отдельных предметов Бугульминского муниципального района Республики Татарстан","Мальцева",8,8,27.5,0,27.5,100,"участник",null,"Быстрова Наталья Николаевна"]
[51,"Муниципальное бюджетное общеобразовательное учреждение Подгорненская основная общеобразовательная школа Бугульминского муниципального района РТ","Ермолаева",8,8,27.5,0,27.5,100,"участник",null,"Исаева Галина Султановна"]
[52,"муниципальное бюджетное общеобразовательное учреждение cредняя общеобразовательная школа №3 с углубленным изучением отдельных предметов Бугульминского муниципального района Республики Татарстан","Грачева",8,8,26,0,26,100,"участник",null,"Батуллина Рамиля Усмановна"]
[53,"Муниципальное бюджетное общеобразовательное учреждение средняя общеобразовательная школа №11 Бугульминского муниципального района Республики Татарстан","Колосов",8,8,25.5,0,25.5,100,"участник",null,"Ахмедшина Гульнара Ильдаровна"]
[54,"Муниципальное бюджетное общеобразовательное учреждение средняя общеобразовательная школа №6 с углубленным изучением отдельных предметов Бугульминского муниципального района РТ","Попова",8,8,25,0,25,100,"участник",null,"Юсупова Эльвира Хакимжановна"]
[55,"Муниципальное бюджетное общеобразовательное учреждение средняя общеобразовательная школа №9 Бугульминского муниципального района Республики Татарстан имени Капитолины Андреевны Сидоркиной","Белова",8,8,21,0,21,100,"участник",null,"Никулина Светлана Юрьева"]
[56,"Муниципальное бюджетное общеобразовательное учреждение cредняя общеобразовательная школа №4 Бугульминского муниципального района Республики Татарстан","Хисамиева",8,8,20,0,20,100,"участник",null,"Мухаметова Валерия Гусмановна"]
[57,"муниципальное бюджетное общеобразовательное учреждение cредняя общеобразовательная школа №3 с углубленным изучением отдельных предметов Бугульминского муниципального района Республики Татарстан","Якунина",8,8,19,0,19,100,"участник",null,"Батуллина Рамиля Усмановна"]
[58,"Муниципальное бюджетное общеобразовательное учреждение cредняя общеобразовательная школа №4 Бугульминского муниципального района Республики Татарстан","Паймукова",8,8,19,0,19,100,"участник",null,"Мухаметова Валерия Гусмановна"]
[59,"Муниципальное бюджетное общеобразовательное учреждение «Зелено-Рощинская основная общеобразовательная школа» Бугульминского муниципального района РТ","Кузнецова",8,8,19,0,19,100,"участник",null,"Мутагирова Ирина Федоровна"]
[60,"Муниципальное бюджетное общеобразовательное учреждение гимназия №7 Бугульминского муниципального района РТ","Архипов",8,8,18,0,18,100,"участник","да","Некрасова Ксения Андреевна"]
[61,"Муниципальное бюджетное общеобразовательное учреждение средняя общеобразовательная школа № 16 Бугульминского муниципального района Республики Татарстан","Бородина",8,8,17,0,17,100,"участник",null,"Бахтина Нина Николаевна"]
[62,"Муниципальное бюджетное общеобразовательное учреждение основная общеобразовательная школа №12 Бугульминского муниципального района Республики Татарстан","Саразина",8,8,14,0,14,100,"участник",null,"Шаталова Эвелина Николаевна"]
[63,"Муниципальное бюджетное общеобразовательное учреждение Восточная основная общеобразовательная школа Бугульминского муниципального района РТ","Матвеева",8,8,13,0,13,100,"участник",null,"Ильясова Флера Ахтямовна"]
[64,"Муниципальное бюджетное общеобразовательное учреждение  «Карабашская средняя общеобразовательная школа №2» Бугульминского муниципального района  Республики Татарстан ","Лотфуллина",8,8,13,0,13,100,"участник",null,"Бегова Светлана Васильевна"]
[65,"Муниципальное бюджетное общеобразовательное учреждение Малобугульминская средняя общеобразовательная школа Бугульминского муниципального района Республики Татарстан","Климов",8,8,12,0,12,100,"участник",null,"Гарипова Людмила Григорьевна"]
[66,"Муниципальное бюджетное общеобразовательное учреждение основная общеобразовательная школа №18 Бугульминского муниципального района РеспубликиТатарстан","Забудина",8,8,11.5,0,11.5,100,"участник",null,"Чернова А.Н."]
[67,"Муниципальное бюджетное общеобразовательное учреждение  «Карабашская средняя общеобразовательная школа №2» Бугульминского муниципального района  Республики Татарстан ","Карчиева",8,8,10,0,{"$f":"F70+G70","v":10},100,"участник",null,"Мулюкова Минлегуль Харисовна"]
[68,"Муниципальное бюджетное общеобразовательное учреждение средняя общеобразовательная школа № 16 Бугульминского муниципального района Республики Татарстан","Афанасьева",8,8,9,0,9,100,"участник",null,"Бахтина Нина Николаевна"]
[69,"Муниципальное бюджетное общеобразовательное учреждение основная общеобразовательная школа №8 Бугульминского муниципального района РТ","Елшин",8,8,7,0,7,100,"участник",null,"Плечева Татьяна Викторовна"]
[70,"Муниципальное бюджетное общеобразовательное учреждение основная общеобразовательная школа №8 Бугульминского муниципального района РТ","Гунова",8,8,6,0,6,100,"участник",null,"Плечева Татьяна Викторовна"]
[71,"Муниципальное бюджетное общеобразовательное учреждение лицей №2 Бугульминского муниципального района РТ Школа - центр компетенции в электронном образовании","Аскарова",9,9,91,0,91,100,"победитель",null,"Галлямова Наталья Владимировна"]
[72,"Муниципальное бюджетное общеобразовательное учреждение гимназия №7 Бугульминского муниципального района РТ","Мифтахова",9,9,79,0,79,100,"призер","да","Камбулова Марина Александровна"]
[73,"Муниципальное бюджетное общеобразовательное учреждение гимназия №7 Бугульминского муниципального района РТ","Абросимова",9,9,67,0,67,100,"призер","да","Некрасова Ксения Андреевна"]
[74,"Муниципальное бюджетное общеобразовательное учреждение гимназия №7 Бугульминского муниципального района РТ","Лапшин",9,9,65,0,65,100,"призер","да","Некрасова Ксения Андреевна"]
[75,"Муниципальное бюджетное общеобразовательное учреждение лицей №2 Бугульминского муниципального района РТ Школа - центр компетенции в электронном образовании","Болотов",9,9,47,0,47,100,"участник","да","Карсакова Эльна Борисовна"]
[76,"Муниципальное бюджетное общеобразовательное учреждение средняя общеобразовательная школа № 16 Бугульминского муниципального района Республики Татарстан","Кочеткова",9,9,46,0,46,100,"участник",null,"Коптелова Светлана Вениаминовна"]
[77,"Муниципальное бюджетное общеобразовательное учреждение средняя общеобразовательная школа №6 с углубленным изучением отдельных предметов Бугульминского муниципального района РТ","Жернакова",9,9,43,0,43,100,"участник",null,"Юсупова Эльвира Хакимжановна"]
[78,"муниципальное бюджетное общеобразовательное учреждение cредняя общеобразовательная школа №3 с углубленным изучением отдельных предметов Бугульминского муниципального района Республики Татарстан","Гисматулина",9,9,41,0,41,100,"участник",null,"Майорова Кристина Ильдаровна"]
[79,"Муниципальное бюджетное общеобразовательное учреждение средняя общеобразовательная школа № 16 Бугульминского муниципального района Республики Татарстан","Мухалёва",9,9,38,0,38,100,"участник",null,"Коптелова Светлана Вениаминовна"]
[80,"Муниципальное бюджетное общеобразовательное учреждение средняя общеобразовательная школа №13 Бугульминского муниципального района Республики Татарстан","Ростунова",9,9,36,0,36,100,"участник",null,"Богачук И.А."]
[82,"Муниципальное бюджетное общеобразовательное учреждение cредняя общеобразовательная школа №4 Бугульминского муниципального района Республики Татарстан","Ильина",9,9,36,0,36,100,"участник",null,"Мухаметова Валерия Гусмановна"]
[84,"Муниципальное бюджетное общеобразовательное учреждение cредняя общеобразовательная школа №1 с углубленным изучением отдельных предметов Бугульминского муниципального района Республики Татарстан","Севастьянова",9,9,35,0,35,100,"участник",null,"Ледяева Раиса Михайловна"]
[86,"муниципальное бюджетное общеобразовательное учреждение cредняя общеобразовательная школа №3 с углубленным изучением отдельных предметов Бугульминского муниципального района Республики Татарстан","Власенко",9,9,33,0,33,100,"участник",null,"Кабанова Ольга Захаровна"]
[88,"Муниципальное бюджетное общеобразовательное учреждение Восточная основная общеобразовательная школа Бугульминского муниципального района РТ","Исангильдина",9,9,33,0,33,100,"участник",null,"Ильясова Флера Ахтямовна"]
[90,"Муниципальное бюджетное общеобразовательное учреждение средняя общеобразовательная школа № 5 с углубленным изучением отдельных предметов Бугульминского муниципального района Республики Татарстан","Баженова",9,9,32,0,32,100,"участник",null,"Байбекова Гульнур Азгаровна"]
[92,"Муниципальное бюджетное общеобразовательное учреждение средняя общеобразовательная школа №11 Бугульминского муниципального района Республики Татарстан","Потанина",9,9,29,0,29,100,"участник",null,"Ахмедшина Гульнара Ильдаровна"]
[94,"МБОУ «Карабашская средняя общеобразовательная школа №2» Бугульминского муниципального района РТ","Салахова",9,9,29,0,29,100,"участник",null,"Камалова Светлана Юрьевна"]
[96,"Муниципальное бюджетное общеобразовательное учреждение средняя общеобразовательная школа №13 Бугульминского муниципального района Республики Татарстан","Толмачёва",9,9,28,0,28,100,"участник",null,"Богачук И.А."]
[98,"Муниципальное бюджетное общеобразовательное учреждение основная общеобразовательная школа №8 Бугульминского муниципального района РТ","Кирхиева",9,9,27,0,27,100,"участник",null,"Плечева Татьяна Викторовна"]
[100,"Муниципальное бюджетное общеобразовательное учреждение основная общеобразовательная школа №18 Бугульминского муниципального района РеспубликиТатарстан","Трушалиева",9,9,27,0,27,100,"участник",null,"Чернова Альбина Накифовнв"]
[102,"Муниципальное бюджетное общеобразовательное учреждение средняя общеобразовательная школа №6 с углубленным изучением отдельных предметов Бугульминского муниципального района РТ","Кузнецова",9,9,25,0,25,100,"участник",null,"Юсупова Эльвира Хакимжановна"]
[104,"Муниципальное бюджетное общеобразовательное учреждение основная общеобразовательная школа №8 Бугульминского муниципального района РТ","Хабибрахманова",9,9,24,0,24,100,"участник",null,"Плечева Татьяна Викторовна"]
[106,"Муниципальное бюджетное общеобразовательное учреждение Малобугульминская средняя общеобразовательная школа Бугульминского муниципального района Республики Татарстан","Вуколова",9,9,24,0,24,100,"участник",null,"Кузина Татьяна Иосифовна"]
[108,"Муниципальное бюджетное общеобразовательное учреждение средняя общеобразовательная школа № 5 с углубленным изучением отдельных предметов Бугульминского муниципального района Республики Татарстан","Козин",9,9,22,0,22,100,"участник",null,"Хамзина Наталья Леонидовна"]
[110,"Муниципальное бюджетное общеобразовательное учреждение средняя общеобразовательная школа №11 Бугульминского муниципального района Республики Татарстан","Фаттахова",9,9,18,0,18,100,"участник",null,"Ахмедшина Гульнара Ильдаровна"]
[112,"Муниципальное бюджетное общеобразовательное учреждение «Зелено-Рощинская основная общеобразовательная школа» Бугульминского муниципального района РТ","Нуриева",9,9,18,0,18,100,"участник",null,"Мутагирова Ирина Федоровна"]
[114,"Муниципальное бюджетное общеобразовательное учреждение Подгорненская основная общеобразовательная школа Бугульминского муниципального района РТ","Шарифуллина",9,9,17,0,17,100,"участник",null,"Исаева Галина Султановна"]
[116,"Муниципальное бюджетное общеобразовательное учреждение средняя общеобразовательная школа №13 Бугульминского муниципального района Республики Татарстан","Жук",9,9,17,0,17,100,"участник",null,"Богачук И.А."]
[118,"Муниципальное бюджетное общеобразовательное учреждение лицей №2 Бугульминского муниципального района РТ Школа - центр компетенции в электронном образовании","Барциковская",10,10,92,0,92,100,"победитель","да","Щербинина Светлана Александровна"]
[120,"Муниципальное бюджетное общеобразовательное учреждение средняя общеобразовательная школа №6 с углубленным изучением отдельных предметов Бугульминского муниципального района РТ","Казакова",10,10,76,0,76,100,"призер",null,"Юсупова Эльвира Хакимжановна"]
[122,"Муниципальное бюджетное общеобразовательное учреждение средняя общеобразовательная школа №6 с углубленным изучением отдельных предметов Бугульминского муниципального района РТ","Газизова",10,10,75,0,75,100,"призер","да","Щербинина Светлана Александровна"]
[124,"Муниципальное бюджетное общеобразовательное учреждение гимназия №7 Бугульминского муниципального района РТ","Петухова",10,10,74,0,74,100,"участник",null,"Камбулова Марина Александровна"]
[126,"Муниципальное бюджетное общеобразовательное учреждение гимназия №7 Бугульминского муниципального района РТ","Вдовина",10,10,62,0,62,100,"участник",null,"Кадышева Марина Ивановна"]
[128,"Муниципальное бюджетное общеобразовательное учреждение средняя общеобразовательная школа № 5 с углубленным изучением отдельных предметов Бугульминского муниципального района Республики Татарстан","Аскарова",10,10,44,0,44,100,"участник",null,"Хамзина Наталья Леонидовна"]
[130,"Муниципальное бюджетное общеобразовательное учреждение лицей №2 Бугульминского муниципального района РТ Школа - центр компетенции в электронном образовании","Корепанова",10,10,44,0,44,100,"участник",null,"Щербинина Светлана Александровна"]
[132,"Муниципальное бюджетное общеобразовательное учреждение средняя общеобразовательная школа №6 с углубленным изучением отдельных предметов Бугульминского муниципального района РТ","Леонтьева",10,10,36,0,36,100,"участник",null,"Юсупова Эльвира Хакимжановна"]
[134,"Муниципальное бюджетное общеобразовательное учреждение средняя общеобразовательная школа № 5 с углубленным изучением отдельных предметов Бугульминского муниципального района Республики Татарстан","Бешанова",10,10,29,0,29,100,"участник","да","Хамзина Наталья Леонидовна"]
[136,"Муниципальное бюджетное общеобразовательное учреждение средняя общеобразовательная школа №9 Бугульминского муниципального района Республики Татарстан имени Капитолины Андреевны Сидоркиной","Сулейманов",10,10,21,0,21,100,"участник",null,"Назарова Ирина Валентиновна"]
[138,"муниципальное бюджетное общеобразовательное учреждение cредняя общеобразовательная школа №3 с углубленным изучением отдельных предметов Бугульминского муниципального района Республики Татарстан","Иванова",10,10,21,0,21,100,"участник",null,"Кабанова Ольга Захаровна"]
[140,"Муниципальное бюджетное общеобразовательное учреждение Малобугульминская средняя общеобразовательная школа Бугульминского муниципального района Республики Татарстан","Ракитина",10,10,21,0,21,100,"участник",null,"Кузина Татьяна Иосифовна"]
[142,"муниципальное бюджетное общеобразовательное учреждение cредняя общеобразовательная школа №3 с углубленным изучением отдельных предметов Бугульминского муниципального района Республики Татарстан","Круглова",10,10,20,0,20,100,"участник",null,"Кабанова Ольга Захаровна"]
[144,"Муниципальное бюджетное общеобразовательное учреждение средняя общеобразовательная школа № 16 Бугульминского муниципального района Республики Татарстан","Галиуллина",10,10,20,0,20,100,"участник",null,"Бахтина Нина Николаевна"]
[146,"Муниципальное бюджетное общеобразовательное учреждение средняя общеобразовательная школа № 16 Бугульминского муниципального района Республики Татарстан","Волкова",10,10,19,0,19,100,"участник",null,"Бахтина Нина Николаевна"]
[148,"МБОУ «Карабашская средняя общеобразовательная школа №2» Бугульминского муниципального района РТ","Аксанова",10,10,19,0,19,100,"участник",null,"Камалова Светлана Юрьевна"]
[150,"Государственное бюджетное общеобразовательное учреждение \"Бугульминская кадетская школа-интернат имени Героя Советского Союза Газинура Гафиатуллина\"","Нагоркин",10,10,13,0,13,100,"участник",null,"Ахметшина Нурия Нурисламовна"]
[152,"Муниципальное бюджетное общеобразовательное учреждение средняя общеобразовательная школа №6 с углубленным изучением отдельных предметов Бугульминского муниципального района РТ","Сергеева",11,11,97,0,97,100,"победитель",null,"Сарвартдинова Светлана Ивановна"]
[154,"Муниципальное бюджетное общеобразовательное учреждение средняя общеобразовательная школа №9 Бугульминского муниципального района Республики Татарстан имени Капитолины Андреевны Сидоркиной","Чехов",11,11,78,0,78,100,"призер",null,"Назарова Ирина Валентиновна"]
[156,"Муниципальное бюджетное общеобразовательное учреждение cредняя общеобразовательная школа №1 с углубленным изучением отдельных предметов Бугульминского муниципального района Республики Татарстан","Ермолаева ",11,11,74,0,74,100,"призер",null,"Морозова Елена Дмитриевна"]
[158,"Муниципальное бюджетное общеобразовательное учреждение лицей №2 Бугульминского муниципального района РТ Школа - центр компетенции в электронном образовании","Парамонова",11,11,73,0,73,100,"призер","да","Галлямова Наталья Владимировна"]
[160,"Муниципальное бюджетное общеобразовательное учреждение гимназия №7 Бугульминского муниципального района РТ","Храмова",11,11,50,0,50,100,"участник",null,"Барнатович Ольга Александровна"]
[162,"Муниципальное бюджетное общеобразовательное учреждение гимназия №7 Бугульминского муниципального района РТ","Лапшина",11,11,50,0,50,100,"участник",null,"Барнатович Ольга Александровна"]
[164,"Муниципальное бюджетное общеобразовательное учреждение cредняя общеобразовательная школа №4 Бугульминского муниципального района Республики Татарстан","Мальцева",11,11,47,0,47,100,"участник",null,"Шуваева Людмила Васильевна"]
[166,"муниципальное бюджетное общеобразовательное учреждение cредняя общеобразовательная школа №3 с углубленным изучением отдельных предметов Бугульминского муниципального района Республики Татарстан","Лабанова",11,11,44,0,44,100,"участник",null,"Кабанова Ольга Захаровна"]
[168,"Муниципальное бюджетное общеобразовательное учреждение cредняя общеобразовательная школа №1 с углубленным изучением отдельных предметов Бугульминского муниципального района Республики Татарстан","Садыкова",11,11,44,0,44,100,"участник",null,"Морозова Елена Дмитриевна"]
[170,"Муниципальное бюджетное общеобразовательное учреждение средняя общеобразовательная школа № 16 Бугульминского муниципального района Республики Татарстан","Насырова",11,11,39,0,39,100,"участник",null,"Коптелова Светлана Вениаминовна"]
[172,"Муниципальное бюджетное общеобразовательное учреждение средняя общеобразовательная школа № 5 с углубленным изучением отдельных предметов Бугульминского муниципального района Республики Татарстан","Безрукова",11,11,37,0,37,100,"участник",null,"Кашапова Феруза Риядовна"]
[174,"муниципальное бюджетное общеобразовательное учреждение cредняя общеобразовательная школа №3 с углубленным изучением отдельных предметов Бугульминского муниципального района Республики Татарстан","Галямшина",11,11,37,0,37,100,"участник",null,"Кабанова Ольга Захаровна"]
[176,"Муниципальное бюджетное общеобразовательное учреждение гимназия №7 Бугульминского муниципального района РТ","Некрасова",11,11,33,0,33,100,"участник","да","Барнатович Ольга Александровна"]
[178,"Муниципальное бюджетное общеобразовательное учреждение средняя общеобразовательная школа №1 с углубленным изучением отдельных предметов Бугульминского муниципального района РТ.","Попова",11,11,31,0,31,100,"участник",null,"Галлямова Наталья Владимировна"]
[180,"Муниципальное бюджетное общеобразовательное учреждение средняя общеобразовательная школа № 5 с углубленным изучением отдельных предметов Бугульминского муниципального района Республики Татарстан","Князев",11,11,26,0,{"$f":"F133+G133","v":26},100,"участник",null,"Кашапова Феруза Риядовна"]
[182,"Муниципальное бюджетное общеобразовательное учреждение средняя общеобразовательная школа № 16 Бугульминского муниципального района Республики Татарстан","Сайфутдинова",11,11,20,0,20,100,"участник",null,"Коптелова Светлана Вениаминовна"]
[184,"Муниципальное бюджетное общеобразовательное учреждение средняя общеобразовательная школа №13 Бугульминского муниципального района Республики Татарстан","Лукьянова",11,11,19,0,19,100,"участник",null,"Богачук И.А."]
[186,"Муниципальное бюджетное общеобразовательное учреждение Малобугульминская средняя общеобразовательная школа Бугульминского муниципального района Республики Татарстан","Горбузова",11,11,19,0,19,100,"участник",null,"Кузина Татьяна Иосифовна"]
[188,"Муниципальное бюджетное общеобразовательное учреждение средняя общеобразовательная школа №13 Бугульминского муниципального района Республики Татарстан","Козлова",11,11,15,0,15,100,"участник",null,"Богачук И.А."]
[190,"Муниципальное бюджетное общеобразовательное учреждение cредняя общеобразовательная школа №4 Бугульминского муниципального района Республики Татарстан","Фахретдинова",9,9,36,0,{"$f":"F138+G138","v":36},100,"участник",null,"Мухаметова Валерия Гусмановна"]